[Event "Early-Titled-Tuesday-Blitz-April-23-2024"]
[Site "Chess.com"]
[Date "2024.04.23"]
[Round "1"]
[White "martinmena"]
[Black "karinachess1"]
[Result "0-1"]
[WhiteElo "2207"]
[BlackElo "2609"]
[TimeControl "180+1"]
[EndTime "8:07:06 PDT"]
[Termination "karinachess1 won by checkmate"]

1. c4 {[%clk 0:02:57.8]} 1... e6 {[%clk 0:02:59.2]} 2. g3 {[%clk 0:02:52.9]}
2... Nf6 {[%clk 0:02:58.4]} 3. Bg2 {[%clk 0:02:49.4]} 3... d5 {[%clk 0:02:58.9]}
4. Nf3 {[%clk 0:02:43.8]} 4... dxc4 {[%clk 0:02:59.4]} 5. O-O {[%clk 0:02:42.8]}
5... c6 {[%clk 0:02:59.2]} 6. e3 {[%clk 0:02:38.9]} 6... Nbd7 {[%clk 0:02:48.8]}
7. Qc2 {[%clk 0:02:33.7]} 7... b5 {[%clk 0:02:39.2]} 8. Nd4 {[%clk 0:02:25.3]}
8... Bb7 {[%clk 0:02:25.1]} 9. Nxb5 {[%clk 0:02:01.2]} 9... Qb6 {[%clk
0:02:24.9]} 10. N5a3 {[%clk 0:01:49.4]} 10... Ne5 {[%clk 0:02:22.3]} 11. f4
{[%clk 0:01:33.6]} 11... Ned7 {[%clk 0:02:05.3]} 12. Nxc4 {[%clk 0:01:31.7]}
12... Qc7 {[%clk 0:02:06]} 13. b3 {[%clk 0:01:29.2]} 13... Be7 {[%clk
0:02:05.8]} 14. Bb2 {[%clk 0:01:24.5]} 14... O-O {[%clk 0:02:06.4]} 15. Nc3
{[%clk 0:01:23.5]} 15... c5 {[%clk 0:02:06.6]} 16. Ne4 {[%clk 0:00:48.3]} 16...
Rac8 {[%clk 0:01:46.8]} 17. Nxf6+ {[%clk 0:00:40.8]} 17... Nxf6 {[%clk
0:01:46.8]} 18. Be5 {[%clk 0:00:38.7]} 18... Qd7 {[%clk 0:01:47]} 19. d4 {[%clk
0:00:27.3]} 19... Bxg2 {[%clk 0:01:38.1]} 20. Qxg2 {[%clk 0:00:25.1]} 20... Nd5
{[%clk 0:01:38.7]} 21. e4 {[%clk 0:00:19.2]} 21... Nb4 {[%clk 0:01:35.7]} 22.
Rfd1 {[%clk 0:00:15.7]} 22... cxd4 {[%clk 0:01:24.3]} 23. Bxd4 {[%clk
0:00:15.9]} 23... Qb7 {[%clk 0:01:22.8]} 24. Bf2 {[%clk 0:00:15.6]} 24... Rfd8
{[%clk 0:01:13.3]} 25. e5 {[%clk 0:00:15.9]} 25... Qa6 {[%clk 0:01:08.8]} 26. a4
{[%clk 0:00:14.3]} 26... h5 {[%clk 0:01:02.4]} 27. Qf3 {[%clk 0:00:13.6]} 27...
g6 {[%clk 0:01:02.1]} 28. Qe2 {[%clk 0:00:09.7]} 28... Nd5 {[%clk 0:01:00.3]}
29. Rac1 {[%clk 0:00:08.1]} 29... Bb4 {[%clk 0:01:00.6]} 30. Rd3 {[%clk
0:00:07.5]} 30... Qb7 {[%clk 0:00:47.2]} 31. Rcd1 {[%clk 0:00:07.3]} 31... Kg7
{[%clk 0:00:46.1]} 32. Qf3 {[%clk 0:00:06.6]} 32... Qb8 {[%clk 0:00:44.2]} 33.
Bd4 {[%clk 0:00:03.8]} 33... Ne7 {[%clk 0:00:36.9]} 34. Bb2 {[%clk 0:00:03.2]}
34... Nf5 {[%clk 0:00:37]} 35. Kh1 {[%clk 0:00:03]} 35... Be7 {[%clk 0:00:32.9]}
36. Rxd8 {[%clk 0:00:02.9]} 36... Rxd8 {[%clk 0:00:33.8]} 37. Rxd8 {[%clk
0:00:02.9]} 37... Qxd8 {[%clk 0:00:34.7]} 38. Qe2 {[%clk 0:00:03.1]} 38... Qd5+
{[%clk 0:00:34.4]} 39. Kg1 {[%clk 0:00:03.1]} 39... Bc5+ {[%clk 0:00:34.8]} 40.
Kf1 {[%clk 0:00:01.2]} 40... Qh1# {[%clk 0:00:35.1]} 0-1

[Event "Early-Titled-Tuesday-Blitz-April-23-2024"]
[Site "Chess.com"]
[Date "2024.04.23"]
[Round "1"]
[White "Sofia_Blokhin"]
[Black "jinbojinbo"]
[Result "0-1"]
[WhiteElo "2252"]
[BlackElo "2617"]
[TimeControl "180+1"]
[EndTime "8:07:08 PDT"]
[Termination "jinbojinbo won by checkmate"]

1. d4 {[%clk 0:02:58.9]} 1... Nf6 {[%clk 0:02:59.3]} 2. c4 {[%clk 0:02:58.2]}
2... c5 {[%clk 0:02:59.5]} 3. d5 {[%clk 0:02:57.6]} 3... e6 {[%clk 0:02:59.9]}
4. Nc3 {[%clk 0:02:56.1]} 4... exd5 {[%clk 0:03:00.2]} 5. cxd5 {[%clk
0:02:56.2]} 5... g6 {[%clk 0:02:59.3]} 6. e4 {[%clk 0:02:56.2]} 6... d6 {[%clk
0:02:59.4]} 7. Bf4 {[%clk 0:02:53]} 7... a6 {[%clk 0:02:51.6]} 8. a4 {[%clk
0:02:51.7]} 8... Bg7 {[%clk 0:02:50.9]} 9. h3 {[%clk 0:02:49.7]} 9... O-O {[%clk
0:02:50.7]} 10. Nf3 {[%clk 0:02:49.8]} 10... Re8 {[%clk 0:02:48]} 11. Nd2 {[%clk
0:02:47.5]} 11... Nh5 {[%clk 0:02:43.6]} 12. Bh2 {[%clk 0:02:41.7]} 12... f5
{[%clk 0:02:42.8]} 13. Bd3 {[%clk 0:02:32.9]} 13... Nf6 {[%clk 0:02:11.1]} 14.
O-O {[%clk 0:02:22.7]} 14... Nbd7 {[%clk 0:01:31]} 15. exf5 {[%clk 0:02:16.1]}
15... gxf5 {[%clk 0:01:14.2]} 16. Bxf5 {[%clk 0:02:07.3]} 16... Ne5 {[%clk
0:01:14.3]} 17. Bxc8 {[%clk 0:01:59.6]} 17... Rxc8 {[%clk 0:01:15.2]} 18. f4
{[%clk 0:01:49.1]} 18... Nf7 {[%clk 0:01:08.3]} 19. Nc4 {[%clk 0:01:44.2]} 19...
Qc7 {[%clk 0:01:02.4]} 20. a5 {[%clk 0:01:41.3]} 20... Ne4 {[%clk 0:00:59.4]}
21. Rc1 {[%clk 0:01:19.5]} 21... Bd4+ {[%clk 0:00:56.8]} 22. Kh1 {[%clk
0:01:16.9]} 22... Nf2+ {[%clk 0:00:55.3]} 23. Rxf2 {[%clk 0:01:16.1]} 23... Bxf2
{[%clk 0:00:56.2]} 24. Qg4+ {[%clk 0:01:15.6]} 24... Kh8 {[%clk 0:00:55.9]} 25.
f5 {[%clk 0:01:08.8]} 25... Qe7 {[%clk 0:00:48]} 26. Bf4 {[%clk 0:00:53]} 26...
Bd4 {[%clk 0:00:43.5]} 27. Qh5 {[%clk 0:00:35.9]} 27... Rg8 {[%clk 0:00:35.9]}
28. Kh2 {[%clk 0:00:27.4]} 28... Rce8 {[%clk 0:00:35]} 29. Rf1 {[%clk 0:00:26]}
29... Qf6 {[%clk 0:00:25.4]} 30. Nd1 {[%clk 0:00:18.1]} 30... Ne5 {[%clk
0:00:22.1]} 31. Nxe5 {[%clk 0:00:15.8]} 31... Bxe5 {[%clk 0:00:22]} 32. Bxe5
{[%clk 0:00:13.9]} 32... Qxe5+ {[%clk 0:00:22.3]} 33. Kh1 {[%clk 0:00:14.1]}
33... Qg3 {[%clk 0:00:19.9]} 34. Rg1 {[%clk 0:00:09.7]} 34... Re1 {[%clk
0:00:18.4]} 35. Rxe1 {[%clk 0:00:07.6]} 35... Qxg2# {[%clk 0:00:18.2]} 0-1

[Event "Early-Titled-Tuesday-Blitz-April-23-2024"]
[Site "Chess.com"]
[Date "2024.04.23"]
[Round "1"]
[White "noblerone"]
[Black "GrigorGrigorov"]
[Result "0-1"]
[WhiteElo "2506"]
[BlackElo "2892"]
[TimeControl "180+1"]
[EndTime "8:07:09 PDT"]
[Termination "GrigorGrigorov won by checkmate"]

1. d4 {[%clk 0:02:51.3]} 1... Nf6 {[%clk 0:02:59.3]} 2. Nf3 {[%clk 0:02:50.2]}
2... e6 {[%clk 0:02:59.6]} 3. Bg5 {[%clk 0:02:45.2]} 3... h6 {[%clk 0:02:59.1]}
4. Bh4 {[%clk 0:02:44.4]} 4... c5 {[%clk 0:02:59]} 5. e3 {[%clk 0:02:44.4]} 5...
d5 {[%clk 0:02:58.7]} 6. c3 {[%clk 0:02:42.7]} 6... Nbd7 {[%clk 0:02:59]} 7. Bd3
{[%clk 0:02:42.5]} 7... Bd6 {[%clk 0:02:58.5]} 8. Nbd2 {[%clk 0:02:40.9]} 8...
O-O {[%clk 0:02:57.7]} 9. O-O {[%clk 0:02:24]} 9... b6 {[%clk 0:02:57.9]} 10. e4
{[%clk 0:02:20.7]} 10... cxd4 {[%clk 0:02:56]} 11. Nxd4 {[%clk 0:02:11.5]} 11...
Bb7 {[%clk 0:02:38.9]} 12. Re1 {[%clk 0:02:00.3]} 12... dxe4 {[%clk 0:02:29.9]}
13. Nxe4 {[%clk 0:01:58.8]} 13... Be7 {[%clk 0:02:26.4]} 14. Bg3 {[%clk
0:01:38.4]} 14... Nc5 {[%clk 0:02:20.1]} 15. Nxc5 {[%clk 0:01:29.2]} 15... Bxc5
{[%clk 0:02:17.1]} 16. Nb3 {[%clk 0:00:53.6]} 16... Be7 {[%clk 0:02:12.3]} 17.
Qe2 {[%clk 0:00:50.7]} 17... Qd5 {[%clk 0:02:04.5]} 18. f3 {[%clk 0:00:45.5]}
18... Rfd8 {[%clk 0:02:00.6]} 19. Rad1 {[%clk 0:00:43.2]} 19... Qg5 {[%clk
0:01:49.9]} 20. Nd2 {[%clk 0:00:21.2]} 20... Nh5 {[%clk 0:01:43.5]} 21. Ne4
{[%clk 0:00:16.6]} 21... Nxg3 {[%clk 0:01:37.9]} 22. Nxg3 {[%clk 0:00:14.2]}
22... Bc5+ {[%clk 0:00:49.2]} 23. Kh1 {[%clk 0:00:14.2]} 23... Bd6 {[%clk
0:00:41]} 24. Nf1 {[%clk 0:00:14.2]} 24... Rac8 {[%clk 0:00:38.6]} 25. Be4
{[%clk 0:00:14.4]} 25... Bxe4 {[%clk 0:00:35]} 26. Qxe4 {[%clk 0:00:15.3]} 26...
Bc5 {[%clk 0:00:30]} 27. a3 {[%clk 0:00:11.6]} 27... a5 {[%clk 0:00:29.8]} 28.
Qe2 {[%clk 0:00:08.7]} 28... Qh4 {[%clk 0:00:25.3]} 29. Qe4 {[%clk 0:00:05.8]}
29... Qf2 {[%clk 0:00:21.4]} 30. Ng3 {[%clk 0:00:03.1]} 30... Qxb2 {[%clk
0:00:19.9]} 31. Qb7 {[%clk 0:00:02.4]} 31... Qxc3 {[%clk 0:00:18.5]} 32. Ne4
{[%clk 0:00:02.6]} 32... Qc2 {[%clk 0:00:16.4]} 33. Nxc5 {[%clk 0:00:02.3]}
33... Qxd1 {[%clk 0:00:14.4]} 34. Qxc8 {[%clk 0:00:01.1]} 34... Qxe1# {[%clk
0:00:14.1]} 0-1

[Event "Early-Titled-Tuesday-Blitz-April-23-2024"]
[Site "Chess.com"]
[Date "2024.04.23"]
[Round "1"]
[White "Caracal3000"]
[Black "Sl4werThanYou"]
[Result "1-0"]
[WhiteElo "2483"]
[BlackElo "2799"]
[TimeControl "180+1"]
[EndTime "8:07:10 PDT"]
[Termination "Caracal3000 won by resignation"]

1. e4 {[%clk 0:03:00.4]} 1... e6 {[%clk 0:02:48.6]} 2. d4 {[%clk 0:03:00.6]}
2... d5 {[%clk 0:02:49.5]} 3. exd5 {[%clk 0:02:59.1]} 3... exd5 {[%clk
0:02:49.6]} 4. Nf3 {[%clk 0:02:59.5]} 4... Nc6 {[%clk 0:02:48.5]} 5. Nc3 {[%clk
0:02:58.6]} 5... Nge7 {[%clk 0:02:45.3]} 6. Bd3 {[%clk 0:02:57.8]} 6... Bf5
{[%clk 0:02:45.5]} 7. Bxf5 {[%clk 0:02:57.9]} 7... Nxf5 {[%clk 0:02:46.4]} 8.
Bf4 {[%clk 0:02:57.6]} 8... Bb4 {[%clk 0:02:44.6]} 9. Qe2+ {[%clk 0:02:56.7]}
9... Qe7 {[%clk 0:02:43.8]} 10. Qxe7+ {[%clk 0:02:56.7]} 10... Kxe7 {[%clk
0:02:41.8]} 11. O-O-O {[%clk 0:02:55.3]} 11... Bxc3 {[%clk 0:02:41.9]} 12. bxc3
{[%clk 0:02:55.9]} 12... Kd7 {[%clk 0:02:42]} 13. c4 {[%clk 0:02:37]} 13... Nfe7
{[%clk 0:02:32.1]} 14. cxd5 {[%clk 0:02:29.2]} 14... Nxd5 {[%clk 0:02:16.9]} 15.
Ne5+ {[%clk 0:02:29.4]} 15... Nxe5 {[%clk 0:02:16.3]} 16. Bxe5 {[%clk
0:02:26.7]} 16... f6 {[%clk 0:02:15.9]} 17. Bg3 {[%clk 0:02:26]} 17... b5 {[%clk
0:02:16.1]} 18. Kb2 {[%clk 0:02:16.7]} 18... Rhe8 {[%clk 0:02:12.3]} 19. Rhe1
{[%clk 0:02:16.7]} 19... a5 {[%clk 0:02:01.9]} 20. a4 {[%clk 0:02:07]} 20... c6
{[%clk 0:02:01]} 21. c3 {[%clk 0:01:59.3]} 21... b4 {[%clk 0:01:52.9]} 22. cxb4
{[%clk 0:01:39]} 22... axb4 {[%clk 0:01:44.5]} 23. Kb3 {[%clk 0:01:38.9]} 23...
Nc3 {[%clk 0:00:57.4]} 24. Rxe8 {[%clk 0:01:32]} 24... Rxe8 {[%clk 0:00:58.3]}
25. Rd2 {[%clk 0:01:29.4]} 25... Nd5 {[%clk 0:00:54.6]} 26. a5 {[%clk
0:01:25.4]} 26... Ra8 {[%clk 0:00:53.5]} 27. Ra2 {[%clk 0:01:23.1]} 27... h5
{[%clk 0:00:41.2]} 28. h3 {[%clk 0:01:17.6]} 28... Ra6 {[%clk 0:00:38.6]} 29.
Kc4 {[%clk 0:01:16.2]} 29... g5 {[%clk 0:00:33.4]} 30. f3 {[%clk 0:00:58.2]}
30... Ra8 {[%clk 0:00:20.9]} 31. a6 {[%clk 0:00:56.7]} 31... h4 {[%clk
0:00:08.3]} 32. Bh2 {[%clk 0:00:54.9]} 32... Nc3 {[%clk 0:00:05.3]} 33. Ra1
{[%clk 0:00:50.1]} 33... Nd5 {[%clk 0:00:05.5]} 34. a7 {[%clk 0:00:48.7]} 34...
Kc8 {[%clk 0:00:05]} 35. Bb8 {[%clk 0:00:46.5]} 35... Kb7 {[%clk 0:00:05.6]} 36.
Re1 {[%clk 0:00:44.7]} 36... Nb6+ {[%clk 0:00:03]} 37. Kxb4 {[%clk 0:00:40.4]}
37... Nc8 {[%clk 0:00:02.9]} 38. Kc5 {[%clk 0:00:39.7]} 38... Nxa7 {[%clk
0:00:03]} 39. Bxa7 {[%clk 0:00:36.4]} 39... Kxa7 {[%clk 0:00:03.9]} 40. Ra1+
{[%clk 0:00:36.4]} 40... Kb7 {[%clk 0:00:04.5]} 41. Rxa8 {[%clk 0:00:36.8]}
41... Kxa8 {[%clk 0:00:05.4]} 42. Kxc6 {[%clk 0:00:37.5]} 42... g4 {[%clk
0:00:05.9]} 43. fxg4 {[%clk 0:00:37.4]} 43... Kb8 {[%clk 0:00:06.5]} 44. Kd7
{[%clk 0:00:37.3]} 44... f5 {[%clk 0:00:07.4]} 45. gxf5 {[%clk 0:00:37.6]} 1-0

[Event "Early-Titled-Tuesday-Blitz-April-23-2024"]
[Site "Chess.com"]
[Date "2024.04.23"]
[Round "1"]
[White "Sam_ChessMood"]
[Black "Payyappat"]
[Result "1-0"]
[WhiteElo "2956"]
[BlackElo "2535"]
[TimeControl "180+1"]
[EndTime "8:07:11 PDT"]
[Termination "Sam_ChessMood won by checkmate"]

1. d4 {[%clk 0:03:00.1]} 1... Nf6 {[%clk 0:02:59.5]} 2. c4 {[%clk 0:02:59.4]}
2... c5 {[%clk 0:02:58.2]} 3. d5 {[%clk 0:02:58.4]} 3... e6 {[%clk 0:02:57.6]}
4. Nc3 {[%clk 0:02:58]} 4... exd5 {[%clk 0:02:58.5]} 5. cxd5 {[%clk 0:02:58.7]}
5... d6 {[%clk 0:02:56]} 6. e4 {[%clk 0:02:58.6]} 6... g6 {[%clk 0:02:54.3]} 7.
f4 {[%clk 0:02:58.8]} 7... Bg7 {[%clk 0:02:53]} 8. Bb5+ {[%clk 0:02:58.8]} 8...
Nfd7 {[%clk 0:02:52.5]} 9. Nf3 {[%clk 0:02:57.7]} 9... a6 {[%clk 0:02:51.5]} 10.
Bd3 {[%clk 0:02:57.5]} 10... b5 {[%clk 0:02:50.4]} 11. O-O {[%clk 0:02:57.2]}
11... O-O {[%clk 0:02:49.3]} 12. Kh1 {[%clk 0:02:49.7]} 12... c4 {[%clk
0:02:45.8]} 13. Bc2 {[%clk 0:02:49.3]} 13... Nc5 {[%clk 0:02:42.9]} 14. a3
{[%clk 0:02:43.5]} 14... Nbd7 {[%clk 0:02:39.3]} 15. Be3 {[%clk 0:02:41.1]}
15... f5 {[%clk 0:02:32.1]} 16. e5 {[%clk 0:02:34]} 16... Qc7 {[%clk 0:02:06.2]}
17. e6 {[%clk 0:02:10.4]} 17... Nf6 {[%clk 0:02:02.9]} 18. Qd2 {[%clk
0:02:04.2]} 18... Bb7 {[%clk 0:01:48.3]} 19. Rad1 {[%clk 0:02:01.7]} 19... Rfe8
{[%clk 0:01:46.2]} 20. Ng5 {[%clk 0:01:58.2]} 20... h6 {[%clk 0:01:35.4]} 21.
Nf3 {[%clk 0:01:57.8]} 21... Ng4 {[%clk 0:01:25]} 22. Bg1 {[%clk 0:01:45.7]}
22... Rab8 {[%clk 0:01:08.4]} 23. Nh4 {[%clk 0:01:41.8]} 23... Qe7 {[%clk
0:00:59.2]} 24. Nxg6 {[%clk 0:01:26.3]} 24... Qf6 {[%clk 0:00:53.2]} 25. Bxc5
{[%clk 0:01:23.9]} 25... Qxg6 {[%clk 0:00:30.8]} 26. Bd4 {[%clk 0:01:22]} 26...
Qh5 {[%clk 0:00:27.7]} 27. h3 {[%clk 0:01:19.3]} 27... Qh4 {[%clk 0:00:20.2]}
28. Bxg7 {[%clk 0:01:12.5]} 28... Kxg7 {[%clk 0:00:21.1]} 29. Bxf5 {[%clk
0:01:03.3]} 29... Nf6 {[%clk 0:00:21.1]} 30. Qd4 {[%clk 0:01:00.6]} 30... Rg8
{[%clk 0:00:18.9]} 31. Ne4 {[%clk 0:01:00]} 31... Rbf8 {[%clk 0:00:17.6]} 32.
Nxd6 {[%clk 0:00:52.5]} 32... Kh8 {[%clk 0:00:16.8]} 33. Nf7+ {[%clk 0:00:50.8]}
33... Kg7 {[%clk 0:00:17.3]} 34. d6 {[%clk 0:00:45]} 34... Qg3 {[%clk
0:00:13.7]} 35. Qf2 {[%clk 0:00:42.3]} 35... Qb3 {[%clk 0:00:13.2]} 36. Rde1
{[%clk 0:00:38.2]} 36... Rxf7 {[%clk 0:00:12.7]} 37. exf7 {[%clk 0:00:37.8]}
37... Kxf7 {[%clk 0:00:13.6]} 38. Re7+ {[%clk 0:00:37.8]} 38... Kf8 {[%clk
0:00:13.9]} 39. Rxb7 {[%clk 0:00:38.7]} 39... Nh5 {[%clk 0:00:13]} 40. Rb8+
{[%clk 0:00:33.2]} 40... Kf7 {[%clk 0:00:13.3]} 41. Be6+ {[%clk 0:00:32]} 41...
Kxe6 {[%clk 0:00:13.5]} 42. Rxg8 {[%clk 0:00:32.6]} 42... Kxd6 {[%clk
0:00:13.9]} 43. Qd4+ {[%clk 0:00:32.5]} 43... Ke6 {[%clk 0:00:14.2]} 44. Re1+
{[%clk 0:00:32.5]} 44... Kf7 {[%clk 0:00:15.1]} 45. Qd5+ {[%clk 0:00:31.8]}
45... Kf6 {[%clk 0:00:14.9]} 46. Qe6# {[%clk 0:00:31.9]} 1-0

[Event "Early-Titled-Tuesday-Blitz-April-23-2024"]
[Site "Chess.com"]
[Date "2024.04.23"]
[Round "1"]
[White "DanyKopy"]
[Black "Mops_2004"]
[Result "1-0"]
[WhiteElo "2527"]
[BlackElo "2888"]
[TimeControl "180+1"]
[EndTime "8:07:11 PDT"]
[Termination "DanyKopy won by resignation"]

1. Nf3 {[%clk 0:03:00.4]} 1... g6 {[%clk 0:03:00]} 2. g3 {[%clk 0:03:00.7]} 2...
Bg7 {[%clk 0:03:00.2]} 3. Bg2 {[%clk 0:03:00.6]} 3... f5 {[%clk 0:03:00]} 4. O-O
{[%clk 0:03:00.1]} 4... Nf6 {[%clk 0:02:58.6]} 5. c4 {[%clk 0:02:59.4]} 5... d6
{[%clk 0:02:55.8]} 6. d4 {[%clk 0:02:59]} 6... O-O {[%clk 0:02:54.8]} 7. Nc3
{[%clk 0:02:58.6]} 7... Qe8 {[%clk 0:02:55.3]} 8. d5 {[%clk 0:02:58.2]} 8... a5
{[%clk 0:02:55.3]} 9. Rb1 {[%clk 0:02:56.4]} 9... Na6 {[%clk 0:02:55.1]} 10. Nd4
{[%clk 0:02:53.6]} 10... Nc5 {[%clk 0:02:51.3]} 11. b3 {[%clk 0:02:48.4]} 11...
Bd7 {[%clk 0:02:51]} 12. a3 {[%clk 0:02:47.6]} 12... c6 {[%clk 0:02:50.8]} 13.
dxc6 {[%clk 0:02:46]} 13... bxc6 {[%clk 0:02:50.6]} 14. b4 {[%clk 0:02:46]}
14... axb4 {[%clk 0:02:50.4]} 15. axb4 {[%clk 0:02:46.9]} 15... Nce4 {[%clk
0:02:50.1]} 16. Nxe4 {[%clk 0:02:40.9]} 16... Nxe4 {[%clk 0:02:48]} 17. Bb2
{[%clk 0:02:40.4]} 17... Rb8 {[%clk 0:02:39]} 18. b5 {[%clk 0:02:25.2]} 18...
cxb5 {[%clk 0:02:31.9]} 19. cxb5 {[%clk 0:02:24.3]} 19... Bxb5 {[%clk
0:01:35.1]} 20. Nxb5 {[%clk 0:02:04.9]} 20... Rxb5 {[%clk 0:01:25]} 21. Bxg7
{[%clk 0:02:01.8]} 21... Kxg7 {[%clk 0:01:16.8]} 22. Bxe4 {[%clk 0:01:45.2]}
22... fxe4 {[%clk 0:01:15.8]} 23. Rxb5 {[%clk 0:01:42.6]} 23... Qxb5 {[%clk
0:01:15.3]} 24. Qd4+ {[%clk 0:01:43]} 24... Qe5 {[%clk 0:01:14.5]} 25. Qxe5+
{[%clk 0:01:40.9]} 25... dxe5 {[%clk 0:01:15.4]} 26. e3 {[%clk 0:01:39.3]} 26...
Kf6 {[%clk 0:01:05.8]} 27. Ra1 {[%clk 0:01:36.1]} 27... Kf5 {[%clk 0:00:31.3]}
28. h3 {[%clk 0:01:35]} 28... h5 {[%clk 0:00:30.2]} 29. Ra7 {[%clk 0:01:29.2]}
29... Re8 {[%clk 0:00:26.2]} 30. Kg2 {[%clk 0:01:26.3]} 30... g5 {[%clk
0:00:26.3]} 31. Ra6 {[%clk 0:01:23.6]} 31... Rh8 {[%clk 0:00:24.3]} 32. Ra7
{[%clk 0:01:22]} 32... Rh7 {[%clk 0:00:23.4]} 33. Ra8 {[%clk 0:01:20.7]} 33...
g4 {[%clk 0:00:17.4]} 34. h4 {[%clk 0:01:19]} 34... Ke6 {[%clk 0:00:14.6]} 35.
Ra4 {[%clk 0:01:13.3]} 35... Kd5 {[%clk 0:00:13]} 36. Ra8 {[%clk 0:01:11.9]}
36... Kc4 {[%clk 0:00:07.8]} 37. Ra5 {[%clk 0:01:07.7]} 37... Kd3 {[%clk
0:00:03.8]} 38. Kf1 {[%clk 0:00:55.5]} 38... Rh8 {[%clk 0:00:01.3]} 39. Rxe5
{[%clk 0:00:54.9]} 39... Rb8 {[%clk 0:00:01.4]} 40. Rd5+ {[%clk 0:00:54]} 40...
Kc2 {[%clk 0:00:01.5]} 41. Rxh5 {[%clk 0:00:52.4]} 41... Rb1+ {[%clk 0:00:01.3]}
42. Kg2 {[%clk 0:00:52.2]} 42... Kd3 {[%clk 0:00:02.2]} 43. Rg5 {[%clk
0:00:46.3]} 43... Rb2 {[%clk 0:00:01.4]} 44. Rxg4 {[%clk 0:00:45.5]} 44... e5
{[%clk 0:00:02.1]} 45. Rg5 {[%clk 0:00:44]} 45... Ke2 {[%clk 0:00:02]} 46. Rxe5
{[%clk 0:00:42.8]} 46... Ke1 {[%clk 0:00:02.7]} 47. Rf5 {[%clk 0:00:42.9]} 47...
Rb6 {[%clk 0:00:03.4]} 48. h5 {[%clk 0:00:42.7]} 48... Rc6 {[%clk 0:00:03.4]}
49. g4 {[%clk 0:00:42.9]} 1-0

[Event "Early-Titled-Tuesday-Blitz-April-23-2024"]
[Site "Chess.com"]
[Date "2024.04.23"]
[Round "1"]
[White "ubdip"]
[Black "LikeWater"]
[Result "0-1"]
[WhiteElo "2346"]
[BlackElo "2659"]
[TimeControl "180+1"]
[EndTime "8:07:14 PDT"]
[Termination "LikeWater won by checkmate"]

1. c4 {[%clk 0:02:59.4]} 1... Nf6 {[%clk 0:02:59.5]} 2. Nc3 {[%clk 0:02:59.6]}
2... g6 {[%clk 0:02:59.8]} 3. e4 {[%clk 0:03:00]} 3... Bg7 {[%clk 0:02:59.3]} 4.
Nf3 {[%clk 0:03:00.4]} 4... d6 {[%clk 0:02:57.8]} 5. h3 {[%clk 0:02:59.1]} 5...
e5 {[%clk 0:02:53.9]} 6. d4 {[%clk 0:02:53.4]} 6... exd4 {[%clk 0:02:53.7]} 7.
Nxd4 {[%clk 0:02:54.3]} 7... O-O {[%clk 0:02:53.5]} 8. Be3 {[%clk 0:02:51.4]}
8... Re8 {[%clk 0:02:38.1]} 9. Bd3 {[%clk 0:02:47]} 9... Na6 {[%clk 0:02:38.5]}
10. Nb3 {[%clk 0:02:09.1]} 10... Nb4 {[%clk 0:02:31]} 11. Bb1 {[%clk 0:02:08.5]}
11... Be6 {[%clk 0:02:17.4]} 12. Qe2 {[%clk 0:01:58.7]} 12... a5 {[%clk
0:02:03.6]} 13. Nd4 {[%clk 0:01:36]} 13... Bd7 {[%clk 0:01:55.6]} 14. O-O {[%clk
0:01:34.6]} 14... a4 {[%clk 0:01:53.6]} 15. a3 {[%clk 0:01:33.1]} 15... Nc6
{[%clk 0:01:53.3]} 16. Rd1 {[%clk 0:01:22.8]} 16... Nh5 {[%clk 0:01:43]} 17. Bc2
{[%clk 0:01:16.9]} 17... Bxd4 {[%clk 0:01:13.9]} 18. Bxd4 {[%clk 0:01:17.8]}
18... f5 {[%clk 0:01:14.8]} 19. Qf3 {[%clk 0:01:07.5]} 19... Qh4 {[%clk
0:01:04.3]} 20. Nd5 {[%clk 0:00:36.8]} 20... fxe4 {[%clk 0:00:57.7]} 21. Qe3
{[%clk 0:00:37.4]} 21... Ne5 {[%clk 0:00:23.2]} 22. Nxc7 {[%clk 0:00:27.2]}
22... Nf4 {[%clk 0:00:08.4]} 23. Nxa8 {[%clk 0:00:20.3]} 23... Bxh3 {[%clk
0:00:04.1]} 24. Bxe5 {[%clk 0:00:17.6]} 24... Bxg2 {[%clk 0:00:03.7]} 25. f3
{[%clk 0:00:12.4]} 25... exf3 {[%clk 0:00:03]} 26. Qxf4 {[%clk 0:00:10.2]} 26...
Qh3 {[%clk 0:00:02]} 27. Kf2 {[%clk 0:00:09]} 27... dxe5 {[%clk 0:00:01.6]} 28.
Qg3 {[%clk 0:00:07.7]} 28... Qc8 {[%clk 0:00:02.1]} 29. Nb6 {[%clk 0:00:07.2]}
29... Qc5+ {[%clk 0:00:02.4]} 30. Ke1 {[%clk 0:00:06.9]} 30... Qe3# {[%clk
0:00:02.8]} 0-1